fUST/lending_fUST_20240909
["ID","MTS","AMOUNT","RATE_DAILY","PERIOD"]
[337604536,1725891040960,-500.0,0.00035573,5]
[337604538,1725891040971,-75585.332244,0.00035575,5]
[337604540,1725891040981,-75585.332244,0.0003558,5]
[337604542,1725891040990,-7042.938978,0.000356,2]
[337604544,1725891041000,-150.112233,0.000356,8]
[337604546,1725891041010,-150.112233,0.000356,7]
[337604548,1725891041019,-150.112233,0.000356,5]
[337604551,1725891041028,-150.112233,0.000356,7]
[337604553,1725891041038,-150.112233,0.000356,7]
[337604555,1725891041047,-150.112233,0.000356,7]
[337604557,1725891041057,-150.112233,0.000356,9]
[337604559,1725891041066,-150.112233,0.000356,7]
[337604561,1725891041076,-150.112233,0.000356,5]
[337604563,1725891041086,-150.112233,0.000356,10]
[337604565,1725891041096,-150.112233,0.000356,5]
[337604567,1725891041106,-150.112233,0.000356,6]
[337604569,1725891041116,-150.112233,0.000356,8]
[337604571,1725891041126,-150.112233,0.000356,5]
[337604573,1725891041135,-150.112233,0.000356,6]
[337604575,1725891041146,-150.112233,0.000356,9]
[337604577,1725891041155,-1005.85,0.000356,90]
[337604579,1725891041165,-2000.0,0.00035605,2]
[337604581,1725891041174,-2068.80898226,0.00035605,2]
[337604583,1725891041184,-151.0,0.00035616,14]
[337604585,1725891041194,-151.0,0.00035616,14]
[337604587,1725891041204,-152.065709,0.00035616,14]
[337604589,1725891041214,-500.0,0.00035616,14]
[337604591,1725891041225,-500.0,0.00035616,14]
[337604593,1725891041234,-500.0,0.00035616,14]
[337604595,1725891041244,-151.0,0.00035616,14]
[337604598,1725891041254,-151.0,0.00035616,14]
[337604600,1725891041264,-500.0,0.00035616,14]
[337604602,1725891041274,-151.0,0.00035616,14]
[337604604,1725891041283,-500.0,0.00035616,14]
[337604606,1725891041293,-1327.47,0.00035616,14]
[337604608,1725891041302,-500.0,0.00035616,14]
[337604610,1725891041312,-151.0,0.00035616,14]
[337604612,1725891041321,-571.68,0.00035616,14]
[337604614,1725891041331,-500.0,0.00035616,14]
[337604616,1725891041341,-500.0,0.00035616,10]
[337604618,1725891041350,-500.0,0.00035616,14]
[337604620,1725891041360,-502.40057922,0.00035616,14]
[337604622,1725891041370,-500.0,0.00035616,14]
[337604624,1725891041380,-500.0,0.00035616,14]
[337604626,1725891041390,-152.646701,0.00035616,14]
[337604628,1725891041399,-500.0,0.00035616,14]
[337604630,1725891041409,-500.0,0.00035616,14]
[337604632,1725891041419,-500.0,0.00035616,14]
[337604634,1725891041429,-500.0,0.00035616,14]
[337604637,1725891041439,-522.8,0.00035616,14]
[337604639,1725891041449,-500.0,0.00035616,14]
[337604641,1725891041458,-500.0,0.00035616,14]
[337604643,1725891041469,-506.69573863,0.00035616,14]
[337604645,1725891041479,-500.0,0.00035616,14]
[337604647,1725891041488,-501.4238633,0.00035616,14]
[337604649,1725891041498,-500.0,0.00035616,14]
[337604651,1725891041509,-1922.01,0.00035616,14]
[337604653,1725891041519,-500.0,0.00035616,14]
[337604655,1725891041529,-500.0,0.00035616,14]
[337604657,1725891041539,-500.0,0.00035616,14]
[337604659,1725891041549,-501.64698111,0.00035616,14]
[337604661,1725891041562,-500.0,0.00035616,2]
[337604664,1725891041572,-594.34,0.00035616,14]
[337604666,1725891041581,-500.0,0.00035616,14]
[337604668,1725891041591,-500.0,0.00035616,14]
[337604670,1725891041603,-501.26533805,0.00035616,14]
[337604672,1725891041612,-500.0,0.00035616,2]
[337604674,1725891041621,-505.86610554,0.00035616,14]
[337604676,1725891041632,-1178.66,0.00035616,14]
[337604678,1725891041641,-500.0,0.00035616,14]
[337604680,1725891041651,-500.0,0.00035616,14]
[337604682,1725891041660,-500.0,0.00035616,14]
[337604684,1725891041670,-633.52,0.00035616,14]
[337604686,1725891041679,-500.0,0.00035616,14]
[337604688,1725891041689,-1491.1,0.00035616,14]
[337604690,1725891041699,-512.76458089,0.00035616,14]
[337604692,1725891041708,-488.55561951,0.00035616,14]
[337604694,1725891041718,-500.0,0.00035616,14]
[337604696,1725891041728,-500.0,0.00035616,14]
[337604698,1725891041737,-500.0,0.00035616,14]
[337604700,1725891041748,-225.21757265,0.00035616,14]
[337604702,1725891041758,-500.0,0.00035616,14]
[337604704,1725891041767,-500.0,0.00035616,14]
[337604706,1725891041777,-507.8829069,0.00035616,14]
[337604708,1725891041787,-500.0,0.00035616,14]
[337604710,1725891041796,-500.0,0.00035616,14]
[337604712,1725891041806,-500.0,0.00035616,14]
[337604714,1725891041815,-500.0,0.00035616,14]
[337604716,1725891041825,-500.0,0.00035616,14]
[337604719,1725891041834,-500.0,0.00035616,14]
[337604721,1725891041844,-867.74,0.00035616,14]
[337604723,1725891041853,-500.0,0.00035616,14]
[337604725,1725891041862,-500.0,0.00035616,14]
[337604727,1725891041871,-198.75958,0.00035616,14]
[337604729,1725891041880,-500.0,0.00035616,14]
[337604731,1725891041889,-563.42061105,0.00035616,14]
[337604733,1725891041899,-500.0,0.00035616,14]
[337604735,1725891041910,-500.0,0.00035616,7]
[337604737,1725891041921,-723.45,0.00035616,14]
[337604739,1725891041930,-500.0,0.00035616,14]
[337604741,1725891041940,-862.26,0.00035616,14]
[337604743,1725891041949,-505.5892277,0.00035616,14]
[337604745,1725891041958,-500.0,0.00035616,14]
[337604747,1725891041969,-500.0,0.00035616,14]
[337604749,1725891041978,-500.0,0.00035616,14]
[337604751,1725891041987,-501.05563708,0.00035616,14]
[337604753,1725891041998,-500.0,0.00035616,14]
[337604755,1725891042007,-500.0,0.00035616,14]
[337604757,1725891042017,-500.0,0.00035616,14]
[337604759,1725891042026,-833.33,0.00035616,14]
[337604761,1725891042035,-500.0,0.00035616,14]
[337604763,1725891042046,-500.0,0.00035616,14]
[337604765,1725891042055,-622.3682398,0.00035616,14]
[337604767,1725891042064,-500.0,0.00035616,14]
[337604769,1725891042074,-691.06,0.00035616,14]
[337604771,1725891042084,-500.0,0.00035616,14]
[337604773,1725891042094,-500.0,0.00035616,14]
[337604775,1725891042103,-500.0,0.00035616,14]
[337604777,1725891042113,-500.0,0.00035616,14]
[337604779,1725891042122,-500.0,0.00035616,14]
[337604781,1725891042132,-500.0,0.00035616,14]
[337604783,1725891042141,-500.0,0.00035616,14]
[337604785,1725891042151,-625.61,0.00035616,14]
[337604787,1725891042160,-500.0,0.00035616,14]
[337604789,1725891042169,-500.0,0.00035616,14]
[337604791,1725891042179,-500.0,0.00035616,14]
[337604793,1725891042189,-500.0,0.00035616,14]
[337604795,1725891042198,-500.0,0.00035616,14]
[337604797,1725891042207,-500.0,0.00035616,14]
[337604799,1725891042219,-358.168872,0.00035616,14]
[337604801,1725891042228,-500.0,0.00035616,14]
[337604803,1725891042237,-1848.23,0.00035616,14]
[337604805,1725891042247,-500.0,0.00035616,14]
[337604808,1725891042259,-358.168872,0.00035616,14]
[337604810,1725891042268,-500.0,0.00035616,14]
[337604812,1725891042278,-500.0,0.00035616,14]
[337604814,1725891042289,-501.08798804,0.00035616,14]
[337604816,1725891042298,-500.0,0.00035616,14]
[337604818,1725891042308,-500.0,0.00035616,14]
[337604820,1725891042318,-577.62,0.00035616,14]
[337604822,1725891042328,-1271.86,0.00035616,14]
[337604824,1725891042338,-500.0,0.00035616,14]
[337604826,1725891042347,-500.0,0.00035616,14]
[337604828,1725891042357,-500.0,0.00035616,14]
[337604830,1725891042367,-151.0,0.00035616,14]
[337604832,1725891042376,-500.0,0.00035616,14]
[337604834,1725891042387,-500.0,0.00035616,14]
[337604836,1725891042396,-500.0,0.00035616,14]
[337604838,1725891042405,-1190.33,0.00035616,14]
[337604840,1725891042416,-500.0,0.00035616,14]
[337604842,1725891042425,-500.0,0.00035616,14]
[337604844,1725891042435,-500.0,0.00035616,14]
[337604846,1725891042446,-500.0,0.00035616,14]
[337604848,1725891042456,-500.0,0.00035616,14]
[337604850,1725891042466,-500.0,0.00035616,14]
[337604853,1725891042478,-500.0,0.00035616,14]
[337604855,1725891042488,-500.36544117,0.00035616,14]
[337604857,1725891042498,-500.0,0.00035616,14]
[337604859,1725891042507,-919.94,0.00035616,14]
[337604861,1725891042517,-500.0,0.00035616,14]
[337604863,1725891042527,-877.82,0.00035616,14]
[337604865,1725891042537,-500.0,0.00035616,14]
[337604867,1725891042548,-500.0,0.00035616,14]
[337604869,1725891042561,-500.0,0.00035616,14]
[337604871,1725891042570,-500.0,0.00035616,14]
[337604873,1725891042581,-1637.62,0.00035616,14]
[337604875,1725891042591,-500.9987486,0.00035616,14]
[337604877,1725891042602,-501.79348152,0.00035616,14]
[337604879,1725891042611,-500.0,0.00035616,14]
[337604882,1725891042621,-2184.14,0.00035616,14]
[337604884,1725891042631,-500.28680857,0.00035616,14]
[337604886,1725891042641,-500.0,0.00035616,14]
[337604889,1725891042651,-217.665348,0.00035616,14]
[337604892,1725891042660,-498.72045794,0.00035616,14]
[337604895,1725891042670,-501.81241,0.00035616,14]
[337604897,1725891042680,-217.665348,0.00035616,14]
[337604899,1725891042689,-500.0,0.00035616,14]
[337604901,1725891042699,-2634.0,0.00035616,14]
[337604903,1725891042709,-500.0,0.00035616,14]
[337604905,1725891042721,-151.0,0.00035616,14]
[337604907,1725891042731,-500.0,0.00035616,14]
[337604909,1725891042741,-500.0,0.00035616,14]
[337604912,1725891042751,-500.0,0.00035616,14]
[337604915,1725891042761,-502.88880513,0.00035616,14]
[337604918,1725891042771,-500.0,0.00035616,14]
[337604920,1725891042781,-1620.74,0.00035616,14]
[337604922,1725891042790,-500.0,0.00035616,14]
[337604925,1725891042800,-500.0,0.00035616,14]
[337604928,1725891042810,-180.63098617,0.00035616,14]
[337604930,1725891042819,-500.0,0.00035616,14]
[337604933,1725891042829,-500.0,0.00035616,14]
[337604936,1725891042839,-500.0,0.00035616,14]
[337604937,1725891042848,-500.0,0.00035616,14]
[337604942,1725891042858,-500.0,0.00035616,14]
[337604946,1725891042867,-500.0,0.00035616,14]
[337604950,1725891042877,-532.579088,0.00035616,14]
[337604952,1725891042887,-532.579088,0.00035616,14]
[337604954,1725891042896,-532.579088,0.00035616,14]
[337604956,1725891042906,-532.579088,0.00035616,14]
[337604958,1725891042915,-532.579088,0.00035616,14]
[337604960,1725891042925,-532.579088,0.00035616,14]
[337604962,1725891042934,-500.0,0.00035616,14]
[337604964,1725891042944,-533.28,0.00035616,14]
[337604966,1725891042954,-740.48,0.00035616,14]
[337604968,1725891042963,-594.78,0.00035616,14]
[337604970,1725891042975,-500.0,0.00035616,14]
[337604972,1725891042985,-500.0,0.00035616,14]
[337604974,1725891042995,-500.0,0.00035616,14]
[337604976,1725891043005,-151.0,0.00035616,14]
[337604978,1725891043015,-500.0,0.00035616,14]
[337604980,1725891043024,-519.13,0.00035616,14]
[337604983,1725891043035,-500.0,0.00035616,14]
[337604985,1725891043045,-500.0,0.00035616,14]
[337604987,1725891043054,-154.074996,0.00035616,14]
[337604989,1725891043064,-518.01197842,0.00035616,14]
[337604991,1725891043074,-500.0,0.00035616,14]
[337604993,1725891043083,-1050.83,0.00035616,14]
[337604995,1725891043094,-874.61,0.00035616,14]
[337604997,1725891043104,-500.24507162,0.00035616,14]
[337604999,1725891043114,-151.762696,0.00035616,14]
[337605001,1725891043124,-500.0,0.00035616,14]
[337605003,1725891043133,-151.762696,0.00035616,14]
[337605005,1725891043143,-500.0,0.00035616,14]
[337605007,1725891043153,-500.0,0.00035616,14]
[337605009,1725891043163,-1303.77,0.00035616,14]
[337605011,1725891043173,-1240.71,0.00035616,14]
[337605013,1725891043182,-500.0,0.00035616,14]
[337605015,1725891043192,-500.0,0.00035616,14]
[337605017,1725891043202,-500.0,0.00035616,14]
[337605019,1725891043212,-533.92,0.00035616,14]
[337605021,1725891043223,-500.0,0.00035616,14]
[337605023,1725891043232,-500.0,0.00035616,14]
[337605025,1725891043242,-500.0,0.00035616,14]
[337605027,1725891043251,-500.0,0.00035616,14]
[337605029,1725891043261,-692.6,0.00035616,14]
[337605031,1725891043270,-500.0,0.00035616,14]
[337605033,1725891043279,-500.0,0.00035616,14]
[337605035,1725891043289,-502.27210797,0.00035616,14]
[337605038,1725891043298,-500.0,0.00035616,14]
[337605040,1725891043307,-500.0,0.00035616,14]
[337605042,1725891043317,-500.0,0.00035616,14]
[337605044,1725891043327,-500.0,0.00035616,14]
[337605046,1725891043337,-500.0,0.00035616,14]
[337605048,1725891043346,-500.0,0.00035616,14]
[337605050,1725891043355,-500.0,0.00035616,14]
[337605068,1725891043365,-500.0,0.00035616,14]
[337605070,1725891043533,-887.98,0.00035616,14]
[337605072,1725891043543,-505.0,0.00035616,14]
[337605074,1725891043554,-500.0,0.00035616,14]
[337605077,1725891043565,-500.0,0.00035616,14]
[337605079,1725891043575,-932.83,0.00035616,14]
[337605081,1725891043585,-932.83,0.00035616,14]
[337605083,1725891043595,-500.0,0.00035616,14]
[337605085,1725891043605,-932.83,0.00035616,14]
[337605087,1725891043615,-932.83,0.00035616,14]
[337605089,1725891043624,-932.83,0.00035616,14]
[337605091,1725891043635,-932.83,0.00035616,14]
[337605093,1725891043646,-932.83,0.00035616,14]
[337605095,1725891043655,-932.83,0.00035616,14]
[337605097,1725891043665,-932.83,0.00035616,14]
[337605099,1725891043675,-501.55924787,0.00035616,14]
[337605102,1725891043685,-932.83,0.00035616,14]
[337605104,1725891043695,-932.83,0.00035616,14]
[337605106,1725891043705,-932.83,0.00035616,14]
[337605108,1725891043714,-932.83,0.00035616,14]
[337605110,1725891043727,-932.83,0.00035616,14]
[337605112,1725891043736,-932.83,0.00035616,14]
[337605114,1725891043745,-500.0,0.00035616,14]
[337605116,1725891043754,-932.83,0.00035616,14]
[337605118,1725891043763,-500.0,0.00035616,14]
[337605120,1725891043774,-932.83,0.00035616,14]
[337605122,1725891043783,-500.0,0.00035616,14]
[337605124,1725891043793,-501.01035668,0.00035616,14]
[337605126,1725891043801,-932.83,0.00035616,14]
[337605128,1725891043811,-932.83,0.00035616,14]
[337605130,1725891043820,-932.83,0.00035616,14]
[337605132,1725891043830,-932.83,0.00035616,14]
[337605134,1725891043840,-502.83,0.00035616,14]
[337605136,1725891043850,-1577.78,0.00035616,14]
[337605138,1725891043860,-932.83,0.00035616,14]
[337605140,1725891043869,-748.39,0.00035616,14]
[337605142,1725891043879,-313.0,0.00035616,14]
[337605144,1725891043889,-932.83,0.00035616,14]
[337605146,1725891043898,-500.0,0.00035616,14]
[337605148,1725891043908,-500.0,0.00035616,14]
[337605150,1725891043917,-932.97231556,0.00035616,14]
[337605152,1725891043927,-500.0,0.00035616,14]
[337605154,1725891043935,-500.0,0.00035616,14]
[337605156,1725891043945,-569.88,0.00035616,14]
[337605158,1725891043955,-403.43054338,0.00035616,14]
[337605160,1725891043965,-523.804249,0.00035616,14]
[337605162,1725891043977,-500.0,0.00035616,14]
[337605164,1725891043990,-500.0,0.00035616,14]
[337605166,1725891044000,-500.0,0.00035616,14]
[337605168,1725891044009,-500.0,0.00035616,14]
[337605170,1725891044020,-500.0,0.00035616,14]
[337605172,1725891044029,-500.0,0.00035616,14]
[337605174,1725891044039,-500.0,0.00035616,14]
[337605176,1725891044049,-500.0,0.00035616,14]
[337605178,1725891044058,-500.0,0.00035616,14]
[337605181,1725891044068,-623.13,0.00035616,14]
[337605183,1725891044077,-500.0,0.00035616,14]
[337605185,1725891044087,-619.42,0.00035616,14]
[337605186,1725891044096,-500.0,0.00035616,14]
[337605189,1725891044105,-500.0,0.00035616,14]
[337605191,1725891044115,-2549.95,0.00035616,30]
[337605193,1725891044124,-501.032209,0.00035616,14]
[337605195,1725891044134,-500.0,0.00035616,14]
[337605197,1725891044143,-500.0,0.00035616,14]
[337605199,1725891044153,-1393.32,0.00035616,14]
[337605201,1725891044162,-500.0,0.00035616,14]
[337605203,1725891044171,-500.0,0.00035616,14]
[337605205,1725891044181,-2122.29,0.00035616,14]
[337605207,1725891044189,-500.0,0.00035616,14]
[337605208,1725891044198,-500.0,0.00035616,14]
[337605210,1725891044208,-624.39502448,0.00035616,14]
[337605212,1725891044217,-500.0,0.00035616,14]
[337605214,1725891044227,-500.0,0.00035616,14]
[337605216,1725891044236,-500.0,0.00035616,14]
[337605218,1725891044246,-500.0,0.00035616,14]
[337605220,1725891044258,-500.0,0.00035616,14]
[337605222,1725891044267,-500.0,0.00035616,14]
[337605224,1725891044277,-500.0,0.00035616,14]
[337605226,1725891044286,-500.0,0.00035616,14]
[337605228,1725891044296,-500.0,0.00035616,14]
[337605230,1725891044305,-501.04688144,0.00035616,14]
[337605232,1725891044314,-1615.92,0.00035616,14]
[337605234,1725891044324,-500.0,0.00035616,14]
[337605236,1725891044333,-932.55,0.00035616,14]
[337605238,1725891044342,-242.65168795,0.00035616,14]
[337605240,1725891044353,-500.0,0.00035616,14]
[337605242,1725891044362,-500.0,0.00035616,14]
[337605244,1725891044371,-500.0,0.00035616,14]
[337605246,1725891044381,-500.0,0.00035616,14]
[337605248,1725891044390,-500.0,0.00035616,14]
[337605250,1725891044400,-500.0,0.00035616,14]
[337605252,1725891044410,-500.0,0.00035616,14]
[337605254,1725891044419,-2029.86,0.00035616,14]
[337605256,1725891044429,-151.0,0.00035616,2]
[337605258,1725891044439,-151.0,0.00035616,2]
[337605260,1725891044449,-520.07826471,0.00035616,14]
[337605262,1725891044457,-500.0,0.00035616,14]
[337605264,1725891044467,-501.9617986,0.00035616,14]
[337605266,1725891044479,-500.0,0.00035616,14]
[337605268,1725891044489,-500.0,0.00035616,14]
[337605270,1725891044498,-500.0,0.00035616,14]
[337605272,1725891044508,-501.52442482,0.00035616,14]
[337605274,1725891044517,-597.62,0.00035616,14]
[337605276,1725891044527,-1238.01,0.00035616,14]
[337605278,1725891044536,-500.0,0.00035616,14]
[337605280,1725891044548,-500.0,0.00035616,14]
[337605282,1725891044562,-500.0,0.00035616,14]
[337605284,1725891044571,-1935.55,0.00035616,14]
[337605286,1725891044580,-500.0,0.00035616,14]
[337605288,1725891044590,-503.01378336,0.00035616,14]
[337605290,1725891044601,-500.0,0.00035616,14]
[337605292,1725891044610,-500.0,0.00035616,14]
[337605293,1725891044619,-500.0,0.00035616,14]
[337605294,1725891044629,-408.2097917,0.00035616,14]
[337605295,1725891044638,-500.0,0.00035616,14]
[337605296,1725891044647,-505.20076558,0.00035616,14]
[337605297,1725891044656,-500.0,0.00035616,14]
[337605298,1725891044665,-500.0,0.00035616,14]
[337605299,1725891044675,-500.0,0.00035616,14]
[337605300,1725891044684,-500.0,0.00035616,14]
[337605301,1725891044693,-707.11,0.00035616,14]
[337605302,1725891044703,-225.466354,0.00035616,14]
[337605303,1725891044712,-225.466354,0.00035616,14]
[337605304,1725891044723,-225.466354,0.00035616,14]
[337605305,1725891044733,-500.0,0.00035616,14]
[337605306,1725891044742,-225.466354,0.00035616,14]
[337605307,1725891044751,-305.011856,0.00035616,14]
[337605308,1725891044761,-305.011856,0.00035616,14]
[337605309,1725891044770,-500.0,0.00035616,14]
[337605310,1725891044780,-305.011856,0.00035616,14]
[337605311,1725891044789,-305.011856,0.00035616,14]
[337605312,1725891044798,-232.38902857,0.00035616,14]
[337605313,1725891044807,-501.39097544,0.00035616,14]
[337605314,1725891044816,-225.466354,0.00035616,14]
[337605315,1725891044825,-505.20000706,0.00035616,14]
[337605316,1725891044834,-225.466354,0.00035616,14]
[337605317,1725891044843,-305.011856,0.00035616,14]
[337605318,1725891044852,-225.466354,0.00035616,14]
[337605319,1725891044862,-225.466354,0.00035616,14]
[337605320,1725891044871,-305.011856,0.00035616,14]
[337605321,1725891044880,-305.011856,0.00035616,14]
[337605322,1725891044889,-305.011856,0.00035616,14]
[337605323,1725891044898,-621.86,0.00035616,14]
[337605324,1725891044907,-500.0,0.00035616,14]
[337605325,1725891044916,-500.0,0.00035616,14]
[337605326,1725891044926,-500.0,0.00035616,14]
[337605327,1725891044935,-2425.31,0.00035616,14]
[337605329,1725891044944,-500.7802698,0.00035616,14]
[337605331,1725891044953,-500.0,0.00035616,14]
[337605333,1725891044962,-503.72103106,0.00035616,14]
[337605335,1725891044972,-761.52,0.00035616,14]
[337605337,1725891044981,-695.17,0.00035616,14]
[337605339,1725891044990,-501.25385802,0.00035616,14]
[337605341,1725891044999,-500.0,0.00035616,14]
[337605343,1725891045008,-500.0,0.00035616,14]
[337605345,1725891045018,-500.0,0.00035616,14]
[337605347,1725891045027,-500.0,0.00035616,14]
[337605349,1725891045036,-500.0,0.00035616,14]
[337605352,1725891045045,-500.0,0.00035616,14]
[337605354,1725891045054,-502.16095731,0.00035616,14]
[337605356,1725891045064,-500.0,0.00035616,14]
[337605358,1725891045074,-501.73824365,0.00035616,14]
[337605360,1725891045083,-642.16488468,0.00035616,14]
[337605362,1725891045092,-500.0,0.00035616,14]
[337605363,1725891045101,-500.0,0.00035616,14]
[337605366,1725891045111,-500.0,0.00035616,14]
[337605368,1725891045120,-575.75,0.00035616,14]
[337605370,1725891045130,-744.94,0.00035616,14]
[337605372,1725891045139,-500.0,0.00035616,14]
[337605373,1725891045147,-500.0,0.00035616,14]
[337605375,1725891045157,-500.0,0.00035616,14]
[337605377,1725891045167,-500.0,0.00035616,14]
[337605379,1725891045176,-500.0,0.00035616,14]
[337605381,1725891045185,-500.0,0.00035616,14]
[337605383,1725891045195,-500.0,0.00035616,14]
[337605385,1725891045204,-609.48,0.00035616,14]
[337605387,1725891045214,-625.66,0.00035616,14]
[337605389,1725891045225,-500.4463617,0.00035616,14]
[337605391,1725891045234,-500.0,0.00035616,14]
[337605393,1725891045243,-500.0,0.00035616,7]
[337605395,1725891045252,-545.43,0.00035616,14]
[337605397,1725891045262,-500.0,0.00035616,14]
[337605399,1725891045270,-151.0,0.00035616,14]
[337605401,1725891045280,-500.0,0.00035616,14]
[337605403,1725891045289,-151.0,0.00035616,14]
[337605405,1725891045298,-152.324702,0.00035616,14]
[337605407,1725891045307,-504.3628324,0.00035616,14]
[337605409,1725891045316,-335.27202658,0.00035616,14]
[337605411,1725891045325,-1030.55,0.00035616,14]
[337605413,1725891045334,-500.0,0.00035616,14]
[337605415,1725891045344,-500.0,0.00035616,14]
[337605418,1725891045354,-500.0,0.00035616,14]
[337605420,1725891045364,-502.0581262,0.00035616,14]
[337605422,1725891045375,-500.0,0.00035616,14]
[337605424,1725891045385,-500.0,0.00035616,14]
[337605426,1725891045394,-500.0,0.00035616,14]
[337605428,1725891045403,-500.0,0.00035616,14]
[337605430,1725891045416,-500.0,0.00035616,14]
[337605432,1725891045427,-500.0,0.00035616,14]
[337605434,1725891045441,-257.12157349,0.00035616,14]
[337605436,1725891045451,-500.0,0.00035616,14]
[337605438,1725891045461,-500.0,0.00035616,14]
[337605440,1725891045473,-500.0,0.00035616,14]
[337605442,1725891045482,-151.0,0.00035616,14]
[337605444,1725891045493,-500.0,0.00035616,14]
[337605446,1725891045502,-151.0,0.00035616,14]
[337605448,1725891045511,-500.0,0.00035616,2]
[337605450,1725891045520,-182.516464,0.00035616,14]
[337605452,1725891045530,-500.0,0.00035616,14]
[337605454,1725891045539,-555.93,0.00035616,14]
[337605456,1725891045549,-757.81,0.00035616,14]
[337605458,1725891045562,-4163.164683,0.00035616,14]
[337605460,1725891045572,-4163.164683,0.00035616,14]
[337605462,1725891045581,-4163.164683,0.00035616,14]
[337605464,1725891045591,-4163.164683,0.00035616,14]
[337605466,1725891045601,-500.0,0.00035616,14]
[337605468,1725891045610,-502.12412513,0.00035616,14]
[337605470,1725891045621,-4163.164683,0.00035616,14]
[337605472,1725891045632,-4163.164683,0.00035616,14]
[337605475,1725891045642,-500.0,0.00035616,14]
[337605477,1725891045652,-4163.164683,0.00035616,14]
[337605479,1725891045661,-500.0,0.00035616,14]
[337605480,1725891045672,-4163.164683,0.00035616,14]
[337605482,1725891045681,-778.89,0.00035616,14]
[337605484,1725891045690,-500.0,0.00035616,14]
[337605486,1725891045699,-500.0,0.00035616,14]
[337605489,1725891045708,-500.0,0.00035616,14]
[337605491,1725891045718,-508.52349011,0.00035616,14]
[337605494,1725891045730,-500.0,0.00035616,14]
[337605496,1725891045741,-725.17,0.00035616,14]
[337605498,1725891045752,-500.0,0.00035616,14]
[337605500,1725891045762,-500.0,0.00035616,14]
[337605503,1725891045771,-560.14,0.00035616,14]
[337605505,1725891045780,-500.0,0.00035616,14]
[337605507,1725891045789,-500.0,0.00035616,14]
[337605509,1725891045799,-1000.81,0.00035616,14]
[337605512,1725891045808,-502.43838905,0.00035616,14]
[337605514,1725891045818,-500.0,0.00035616,14]
[337605516,1725891045827,-596.57861436,0.00035616,14]
[337605518,1725891045837,-567.56,0.00035616,14]
[337605520,1725891045846,-567.56,0.00035616,14]
[337605522,1725891045856,-567.56,0.00035616,14]
[337605524,1725891045865,-567.56,0.00035616,14]
[337605526,1725891045875,-502.27479716,0.00035616,14]
[337605528,1725891045884,-567.56,0.00035616,14]
[337605530,1725891045893,-567.56,0.00035616,14]
[337605532,1725891045903,-567.56,0.00035616,14]
[337605534,1725891045912,-512.78502997,0.00035616,14]
[337605536,1725891045921,-567.56,0.00035616,14]
[337605538,1725891045931,-500.0,0.00035616,14]
[337605540,1725891045940,-567.56,0.00035616,14]
[337605542,1725891045949,-567.56,0.00035616,14]
[337605544,1725891045958,-567.56,0.00035616,14]
[337605546,1725891045967,-1230.17,0.00035616,14]
[337605548,1725891045980,-567.56,0.00035616,14]